bitfinex-derivatives/quotes_BTCF0:USTF0_20250212
["timestamp","ask_amount","ask_price","bid_price","bid_amount"]
[1739381501117,0.002,97666.0,97664.0,0.3608]
[1739381501313,0.8554,97665.0,97664.0,0.3608]
[1739381501710,0.8604,97665.0,97664.0,0.3608]
[1739381503118,0.85996,97665.0,97664.0,0.3608]
[1739381503311,0.85496,97665.0,97664.0,0.3618]
[1739381504007,0.85996,97665.0,97664.0,0.3618]
[1739381504212,0.77404,97665.0,97664.0,0.3618]
[1739381504411,0.87192,97665.0,97664.0,0.3618]
[1739381506119,0.87196,97665.0,97664.0,0.001]
[1739381506515,0.87196,97665.0,97651.0,0.00015356]
[1739381506724,0.017,97665.0,97664.0,0.3608]
[1739381506921,0.11504,97665.0,97664.0,0.3608]
[1739381507624,0.10304,97665.0,97664.0,0.3608]
[1739381507814,0.10704,97665.0,97664.0,0.3608]
[1739381509220,0.10304,97665.0,97664.0,0.3608]
[1739381509414,0.11604,97665.0,97664.0,0.3618]
[1739381510721,0.11504,97665.0,97664.0,0.3618]
[1739381511232,0.11504,97665.0,97664.0,0.001]
[1739381512824,0.1138,97665.0,97664.0,0.3618]
[1739381513021,0.3185718,97665.0,97664.0,0.3618]
[1739381513327,0.017,97665.0,97664.0,0.3618]
[1739381513526,0.1138,97665.0,97664.0,0.3618]
[1739381513929,0.017,97665.0,97664.0,0.3618]
[1739381514231,0.11364,97665.0,97664.0,0.001]
[1739381514720,0.87088,97665.0,97664.0,0.001]
[1739381516125,0.77424,97665.0,97664.0,0.001]
[1739381516329,0.87076,97665.0,97664.0,0.001]
[1739381516723,0.87064,97665.0,97664.0,0.001]
[1739381518318,0.87052,97665.0,97664.0,0.001]
[1739381520633,0.87016,97665.0,97664.0,0.2057739]
[1739381520930,0.017,97665.0,97664.0,0.001]
[1739381521133,0.11292,97665.0,97664.0,0.001]
[1739381521426,0.1128,97665.0,97664.0,0.001]
[1739381523036,0.017,97665.0,97664.0,0.2057739]
[1739381523331,0.2047262,97687.0,97669.0,0.2047634]
[1739381523534,0.2047262,97687.0,97686.0,0.3608]
[1739381523535,0.2047257,97687.0,97686.0,0.3608]
[1739381524640,0.37618083,97687.0,97677.0,0.00015356]
[1739381524935,0.2047446,97678.0,97677.0,0.00015356]
[1739381525633,0.5655446,97678.0,97677.0,0.00015356]
[1739381525828,0.5655446,97678.0,97677.0,0.00115356]
[1739381526132,0.3758,97678.0,97651.0,0.3608]
[1739381526331,0.18133807,97670.0,97651.0,0.3608]
[1739381526532,0.2047806,97661.0,97651.0,0.3608]
[1739381527528,0.18149163,97670.0,97651.0,0.3608]
[1739381527722,0.2047823,97660.0,97651.0,0.3608]
[1739381528133,0.2047823,97660.0,97650.0,0.00015356]
[1739381528334,0.38612037,97660.0,97650.0,0.00015356]
[1739381529035,0.38812037,97660.0,97650.0,0.00015356]
[1739381529240,0.2077823,97660.0,97650.0,0.00015356]
[1739381530035,0.003,97660.0,97651.0,0.3608]
[1739381530236,0.09556,97659.0,97651.0,0.3608]
[1739381531225,0.09604,97658.0,97651.0,0.3608]
[1739381532535,0.09592,97657.0,97651.0,0.3608]
[1739381534438,0.10692,97657.0,97651.0,0.3618]
[1739381534748,0.10692,97657.0,97651.0,0.001]
[1739381535039,0.2047987,97653.0,97642.0,0.3608]
[1739381535234,0.10636172,97656.0,97651.0,0.001]
[1739381535436,0.10636172,97656.0,97655.0,0.3608]
[1739381537039,0.11336172,97656.0,97655.0,0.3618]
[1739381538043,0.007,97656.0,97655.0,0.3618]
[1739381538246,0.10316,97656.0,97655.0,0.3618]
[1739381539044,0.10316,97656.0,97655.0,0.001]
[1739381539344,0.11116,97656.0,97655.0,0.002]
[1739381539747,0.11116,97656.0,97655.0,0.3628]
[1739381540749,0.12047093,97656.0,97655.0,0.3628]
[1739381541050,0.01631093,97656.0,97655.0,0.3618]
[1739381541242,0.02331093,97656.0,97655.0,0.002]
[1739381541439,0.22810163,97656.0,97655.0,0.002]
[1739381541637,0.22810163,97656.0,97646.0,0.00015356]
[1739381541638,0.58890163,97656.0,97646.0,1e-08]
[1739381541838,0.2048047,97650.0,97646.0,1e-08]
[1739381542344,0.75736,97649.0,97646.0,1e-08]
[1739381542747,0.75736,97649.0,97646.0,0.36180001]
[1739381542939,0.75736,97649.0,97648.0,0.3608]
[1739381543244,0.85488,97649.0,97648.0,0.3608]
[1739381544241,0.38578,97649.0,97648.0,0.3608]
[1739381544447,0.007,97656.0,97648.0,0.6608]
[1739381544659,0.007,97656.0,97655.0,0.3608]
[1739381544848,0.18389907,97663.0,97655.0,0.3608]
[1739381545049,0.18389907,97663.0,97662.0,0.3608]
[1739381545249,0.00015356,97670.0,97662.0,0.3608]
[1739381545443,0.00015356,97670.0,97668.0,0.3608]
[1739381546245,0.2047634,97669.0,97668.0,0.3608]
[1739381546548,0.2047634,97669.0,97662.0,0.3608]
[1739381547344,0.2047634,97669.0,97668.0,0.001]
[1739381547653,0.00315356,97670.0,97648.0,0.001]
[1739381547845,0.18133807,97660.0,97647.0,0.3608]
[1739381548447,0.1021,97659.0,97647.0,0.3608]
[1739381548952,0.1021,97659.0,97658.0,0.3608]
[1739381549138,0.1021,97659.0,97647.0,0.3608]
[1739381549542,0.1021,97659.0,97647.0,0.3618]
[1739381549742,0.204798,97653.0,97647.0,0.3618]
[1739381550251,0.204798,97653.0,97648.0,0.001]
[1739381550457,0.2048018,97651.0,97648.0,0.001]
[1739381551450,0.2048018,97651.0,97647.0,0.3628]
[1739381551649,0.004,97653.0,97647.0,0.3618]
[1739381551850,0.013,97651.0,97648.0,0.3628]
[1739381552050,0.00015356,97670.0,97648.0,0.3628]
[1739381552254,0.00015356,97670.0,97667.0,0.3608]
[1739381553658,0.00015356,97670.0,97667.0,0.3618]
[1739381554861,0.00115356,97670.0,97667.0,0.3628]
[1739381555455,0.2047649,97669.0,97667.0,0.3628]
[1739381556657,0.2047649,97669.0,97667.0,0.3618]
[1739381556866,0.2047649,97669.0,97667.0,0.002]
[1739381557169,0.00115356,97670.0,97646.0,1e-08]
[1739381557170,0.2047956,97654.0,97646.0,1e-08]
[1739381557655,0.3608,97659.0,97646.0,1e-08]
[1739381557862,0.2047874,97658.0,97646.0,1e-08]
[1739381558255,0.2047874,97658.0,97646.0,0.00100001]
[1739381558554,0.3608,97659.0,97646.0,0.00100001]
[1739381558752,0.09584,97658.0,97646.0,0.00100001]
[1739381558963,0.002,97658.0,97646.0,0.00200001]
[1739381559257,0.09548,97657.0,97646.0,0.00200001]
[1739381559863,0.3002695,97657.0,97646.0,0.00200001]
[1739381560070,0.37195688,97659.0,97646.0,0.00200001]
[1739381560268,0.2047917,97656.0,97646.0,0.00200001]
[1739381560967,0.1081,97655.0,97646.0,0.00200001]
[1739381561264,0.2047977,97653.0,97646.0,0.00200001]
[1739381561559,0.1081,97655.0,97646.0,0.00100001]
[1739381561757,0.1081,97655.0,97646.0,0.00200001]
[1739381562449,0.002,97653.0,97646.0,0.00200001]
[1739381562655,0.002,97653.0,97649.0,0.3608]
[1739381563261,0.002,97655.0,97649.0,0.3608]
[1739381563563,0.09436,97654.0,97649.0,0.3608]
[1739381564165,0.002,97655.0,97649.0,0.3618]
[1739381564364,0.09416,97654.0,97649.0,0.3618]
[1739381564766,0.002,97653.0,97649.0,0.3628]
[1739381564961,0.09404,97652.0,97649.0,0.3628]
[1739381566169,0.09404,97652.0,97649.0,0.3618]
[1739381566464,0.3008407,97652.0,97649.0,0.3628]
[1739381566763,0.2068007,97652.0,97649.0,0.3618]
[1739381566969,0.2048033,97650.0,97649.0,0.3628]
[1739381567857,0.2048033,97650.0,97649.0,0.002]
[1739381568869,0.5656033,97650.0,97649.0,0.002]
[1739381569166,0.002,97650.0,97646.0,1e-08]
[1739381569955,0.002,97650.0,97649.0,0.001]
[1739381570174,0.095,97650.0,97649.0,0.001]
[1739381570471,0.095,97650.0,97647.0,0.2048092]
[1739381570671,0.002,97650.0,97647.0,0.2048092]
[1739381571171,0.002,97650.0,97649.0,0.001]
[1739381571470,0.09264,97650.0,97649.0,0.001]
[1739381571665,0.20988579,97650.0,97649.0,0.001]
[1739381571866,0.11724579,97650.0,97649.0,0.001]
[1739381572266,0.11424579,97650.0,97649.0,0.001]
[1739381572471,0.11724579,97650.0,97649.0,0.002]
[1739381572675,0.11924579,97650.0,97649.0,0.001]
[1739381573169,0.11724579,97650.0,97649.0,0.001]
[1739381573370,0.11924579,97650.0,97649.0,0.002]
[1739381574560,0.005,97650.0,97649.0,0.002]
[1739381574764,0.09712,97650.0,97649.0,0.002]
[1739381575374,0.005,97650.0,97649.0,0.002]
[1739381575568,0.09704,97650.0,97649.0,0.002]
[1739381576278,0.10619236,97650.0,97649.0,0.002]
[1739381576479,0.01415236,97650.0,97649.0,0.002]
[1739381577376,0.01415236,97650.0,97649.0,0.3628]
[1739381580374,0.01315236,97650.0,97649.0,0.3628]
[1739381580567,0.004,97650.0,97649.0,0.3628]
[1739381580875,0.20896763,97680.0,97649.0,0.67218893]
[1739381581074,0.21841307,97680.0,97679.0,0.3608]
[1739381581482,0.2047461,97678.0,97671.0,0.3608]
[1739381583678,0.2047508,97676.0,97665.0,0.00015356]
[1739381583879,0.3608,97678.0,97671.0,0.001]
[1739381584079,0.0916,97677.0,97671.0,0.001]
[1739381584274,0.0916,97677.0,97671.0,0.002]
[1739381584777,0.00944544,97680.0,97671.0,0.001]
[1739381584977,0.00015356,97684.0,97671.0,0.001]
[1739381585570,0.2047355,97683.0,97668.0,0.3608]
[1739381585776,0.2047355,97683.0,97671.0,0.001]
[1739381586176,0.2047414,97680.0,97671.0,0.001]
[1739381586378,0.3608,97677.0,97668.0,0.3608]
[1739381586584,0.0914,97676.0,97650.0,0.4816389]
[1739381586775,0.2047579,97672.0,97650.0,0.4816389]
[1739381586984,0.0955,97671.0,97650.0,0.4816389]
[1739381587592,0.204768,97667.0,97650.0,0.4816389]
[1739381587776,0.204768,97667.0,97651.0,0.0001043]
[1739381588081,0.2047879,97658.0,97651.0,0.0001043]
[1739381588287,0.0877,97657.0,97651.0,0.0001043]
[1739381588972,0.0877,97657.0,97651.0,0.0011043]
[1739381589178,0.0877,97657.0,97651.0,0.0021043]
[1739381590386,0.0887,97657.0,97651.0,0.0021043]
[1739381590583,0.2934901,97657.0,97651.0,0.0021043]
[1739381590883,0.09800576,97657.0,97651.0,0.0011043]
[1739381591088,0.09800576,97657.0,97651.0,0.0021043]
[1739381592091,0.30279436,97657.0,97651.0,0.0021043]
[1739381592280,0.30279436,97657.0,97651.0,0.0011043]
[1739381592789,0.2047954,97654.0,97651.0,0.0011043]
[1739381593482,0.2047954,97654.0,97651.0,0.0001043]
[1739381593883,0.2047989,97653.0,97651.0,0.0001043]
[1739381594887,0.2047989,97653.0,97651.0,0.0011043]
[1739381597394,0.3608,97652.0,97632.0,0.3608]
[1739381597590,0.2048361,97635.0,97625.0,0.3608]
[1739381597781,0.1208389,97650.0,97625.0,0.3608]
[1739381597982,0.2048002,97652.0,97638.0,0.3608]
[1739381598188,0.2951215,97651.0,97648.0,0.3608]
[1739381598379,0.1208389,97660.0,97648.0,0.3608]
[1739381598584,0.00015364,97659.0,97648.0,0.3608]
[1739381598793,0.2048138,97645.0,97638.0,0.3608]
[1739381599288,0.2048173,97644.0,97638.0,0.3608]
[1739381599490,0.2048166,97644.0,97638.0,0.3608]
[1739381599691,0.2048191,97643.0,97638.0,0.3608]
[1739381599889,0.2048228,97641.0,97638.0,0.3608]
[1739381600380,0.2048144,97645.0,97638.0,0.3608]
[1739381600581,0.3608,97640.0,97625.0,0.001]
[1739381600783,0.3608,97630.0,97614.0,0.3608]
[1739381600985,0.3608,97630.0,97604.0,0.00088]
[1739381600986,0.2048814,97613.0,97604.0,0.00088]
[1739381601182,0.3608,97608.0,97593.0,0.3608]
[1739381601381,0.3608,97608.0,97586.0,0.29468193]
[1739381601382,0.2049058,97601.0,97586.0,0.29468193]
[1739381601592,0.2049352,97587.0,97586.0,0.29468193]
[1739381601784,0.5657352,97587.0,97586.0,0.21434793]
[1739381602291,0.2049584,97576.0,97574.0,0.23670023]
[1739381602490,0.3608,97575.0,97574.0,0.23670023]
[1739381602792,0.2049411,97585.0,97574.0,0.23670023]
[1739381602994,0.3608,97587.0,97574.0,0.23670023]
[1739381602995,0.3608,97587.0,97575.0,0.3608]
[1739381603187,0.09128,97586.0,97575.0,0.3608]
[1739381603786,0.09128,97586.0,97583.0,0.3608]
[1739381604791,0.09928,97586.0,97583.0,0.3618]
[1739381605192,0.00056001,97593.0,97583.0,0.3618]
[1739381605494,0.09116,97600.0,97592.0,0.3608]
[1739381605693,0.00922054,97609.0,97592.0,0.3608]
[1739381606001,0.00922054,97609.0,97593.0,0.0904]
[1739381606496,0.18394554,97600.0,97593.0,0.0904]
[1739381606699,0.18394554,97600.0,97592.0,0.3608]
[1739381608004,0.18394554,97600.0,97592.0,0.3618]
[1739381608396,0.20507114,97596.0,97592.0,0.3618]
[1739381608594,0.20507114,97596.0,97593.0,0.3608]
[1739381609092,0.00015364,97596.0,97593.0,0.3608]
[1739381610402,0.00961638,97596.0,97593.0,0.3608]
[1739381610601,0.00961638,97596.0,97593.0,0.3618]
[1739381611106,0.00961638,97596.0,97593.0,0.002]
[1739381611107,0.2049185,97595.0,97593.0,0.002]
[1739381611404,0.5657185,97595.0,97593.0,0.002]
[1739381612218,0.5657185,97595.0,97593.0,0.001]
[1739381612400,0.5657185,97595.0,97593.0,0.002]
[1739381612807,0.2049442,97583.0,97570.0,0.3608]
[1739381613801,0.2049464,97582.0,97570.0,0.3608]
[1739381614001,0.3608,97584.0,97570.0,0.3608]
[1739381614207,0.2049548,97578.0,97570.0,0.3608]
[1739381615204,0.37000662,97584.0,97570.0,0.3608]
[1739381615504,0.2049489,97581.0,97570.0,0.3608]
[1739381615709,0.37000662,97584.0,97560.0,0.0015372]
[1739381616005,0.2049774,97567.0,97560.0,0.0015372]
[1739381616201,0.18151202,97570.0,97560.0,0.0015372]
[1739381616410,0.2049883,97562.0,97560.0,0.0015372]
[1739381616797,0.3608,97563.0,97540.0,0.18151202]
[1739381617107,0.3608,97554.0,97537.0,0.3608]
[1739381617300,0.2050378,97539.0,97537.0,0.3608]
[1739381617814,0.2000378,97539.0,97537.0,0.3608]
[1739381618111,0.3608,97544.0,97528.0,0.3608]
[1739381618412,0.3608,97544.0,97537.0,0.015]
[1739381619205,0.2050382,97538.0,97537.0,0.015]
[1739381619507,0.75859374,97548.0,97537.0,0.02]
[1739381619508,0.2050255,97545.0,97537.0,0.02]
[1739381619701,0.00015373,97548.0,97537.0,0.02]
[1739381619901,0.20517213,97548.0,97537.0,0.005]
[1739381620102,0.20517213,97548.0,97537.0,0.001]
[1739381620499,0.00015373,97548.0,97547.0,0.3608]
[1739381620707,0.3608,97578.0,97547.0,0.3608]
[1739381620907,0.2049698,97571.0,97562.0,0.3608]
[1739381621302,0.00942784,97578.0,97562.0,0.3608]
[1739381621602,0.18394554,97585.0,97570.0,0.3608]
[1739381621797,0.18394554,97585.0,97581.0,0.3608]
[1739381621798,0.19337809,97585.0,97581.0,0.3608]
[1739381622405,0.18394554,97585.0,97581.0,0.3608]
[1739381623811,0.00015373,97587.0,97581.0,0.3608]
[1739381624011,0.005,97585.0,97581.0,0.3608]
[1739381624313,0.0896,97584.0,97581.0,0.3608]
[1739381624515,0.0896,97584.0,97581.0,0.3618]
[1739381624702,0.0896,97584.0,97581.0,0.3658]
[1739381624909,0.08944,97584.0,97581.0,0.3658]
[1739381625213,0.00015373,97587.0,97581.0,0.3658]
[1739381625408,0.69336402,97680.0,97583.0,0.3608]
[1739381625409,0.00921044,97615.0,97583.0,0.3608]
[1739381625603,0.20540341,97612.0,97607.0,0.3608]
[1739381625798,0.2048859,97611.0,97607.0,0.3608]
[1739381626006,0.2048905,97609.0,97607.0,0.3608]
[1739381626206,0.204888,97610.0,97599.0,0.3608]
[1739381626402,0.204888,97610.0,97607.0,0.3608]
[1739381627010,0.00015373,97614.0,97599.0,0.001]
[1739381627308,0.00015373,97614.0,97595.0,0.00015373]
[1739381627309,0.204915,97597.0,97595.0,0.00015373]
[1739381627814,0.3608,97600.0,97595.0,0.00015373]
[1739381628314,0.2049164,97596.0,97595.0,0.00015373]
[1739381628710,0.5657164,97596.0,97595.0,0.00015373]
[1739381630814,0.5687164,97596.0,97595.0,0.00015373]
[1739381631205,0.5687164,97596.0,97595.0,0.00115373]
[1739381631410,0.5707164,97596.0,97595.0,0.00215373]
[1739381632214,0.5707164,97596.0,97565.0,0.094]
[1739381632215,0.37514436,97596.0,97551.0,0.3608]
[1739381632407,0.3608,97569.0,97560.0,0.18151202]
[1739381632611,0.3608,97569.0,97535.0,0.3608]
[1739381632612,0.3608,97561.0,97535.0,0.3608]
[1739381632915,0.3608,97546.0,97535.0,0.3608]
[1739381633307,0.3608,97546.0,97536.0,0.00015373]
[1739381633613,0.3598,97546.0,97536.0,0.00015373]
[1739381633814,0.3598,97546.0,97545.0,0.00553747]
[1739381635014,0.36917263,97546.0,97545.0,0.00553747]
[1739381636530,0.37017263,97546.0,97545.0,0.00153747]
[1739381639518,0.37017263,97546.0,97545.0,0.00353747]
[1739381640214,0.37017263,97546.0,97536.0,0.00015373]
[1739381640421,0.2050466,97534.0,97504.0,0.3608]
[1739381640723,0.3608,97520.0,97504.0,0.3608]
[1739381641108,0.3608,97520.0,97510.0,0.18151202]
[1739381642022,0.3548,97520.0,97510.0,0.18151202]
[1739381642227,0.00015382,97526.0,97510.0,0.18151202]
[1739381642820,0.001,97520.0,97513.0,0.1249]
[1739381643220,0.2050782,97519.0,97513.0,0.1249]
[1739381643418,0.2050887,97514.0,97513.0,0.1249]
[1739381643624,0.2050887,97514.0,97513.0,0.015]
[1739381643818,0.2050887,97514.0,97513.0,0.021]
[1739381644210,0.2050887,97514.0,97513.0,0.015]
[1739381644411,0.5658887,97514.0,97513.0,0.021]
[1739381645419,0.57569574,97514.0,97513.0,0.021]
[1739381645614,0.18151202,97510.0,97500.0,0.1]
[1739381645815,0.3408,97504.0,97500.0,0.1]
[1739381646015,0.08744,97503.0,97500.0,0.1]
[1739381647513,0.3618,97514.0,97500.0,0.1]
[1739381647726,0.08744,97513.0,97500.0,0.102]
[1739381648227,0.18151202,97510.0,97500.0,0.102]
[1739381648427,0.2051149,97502.0,97500.0,0.102]
[1739381649746,0.2181149,97502.0,97500.0,0.102]
[1739381650726,0.2181149,97502.0,97500.0,0.1]
[1739381651132,0.2051295,97495.0,97480.0,0.18151202]
[1739381651318,0.5659295,97495.0,97480.0,0.18151202]
[1739381651517,0.3608,97495.0,97480.0,0.18151202]
[1739381652026,0.2051332,97493.0,97480.0,0.18151202]
[1739381652217,0.5659295,97495.0,97480.0,0.18151202]
[1739381652720,0.3618,97495.0,97475.0,0.3608]
[1739381652919,0.08708,97494.0,97475.0,0.3608]
[1739381653125,0.2051549,97483.0,97475.0,0.3608]
[1739381653423,0.3608,97486.0,97475.0,0.3608]
[1739381653622,0.2051637,97479.0,97469.0,0.3608]
[1739381653827,0.2051668,97477.0,97469.0,0.3608]
[1739381654127,0.3608,97486.0,97469.0,0.3608]
[1739381654318,0.3608,97472.0,97446.0,0.3608]
[1739381654513,0.3608,97472.0,97440.0,0.23282302]
[1739381654514,0.2051881,97467.0,97453.0,0.2052166]
[1739381654719,0.3608,97472.0,97453.0,0.2052166]
[1739381654925,0.2051897,97466.0,97453.0,0.2052166]
[1739381655125,0.2051803,97471.0,97456.0,0.2052106]
[1739381655326,0.3608,97472.0,97457.0,0.2052077]
[1739381655717,0.0001539,97476.0,97470.0,0.3608]
[1739381655926,0.001,97472.0,97470.0,0.3608]
[1739381656226,0.0864,97471.0,97470.0,0.5659813]
[1739381656426,0.001,97472.0,97471.0,0.2051792]
[1739381656630,0.2051204,97499.0,97470.0,0.6608]
[1739381656925,0.3608,97507.0,97492.0,0.3608]
[1739381657120,0.2051329,97493.0,97492.0,0.3608]
[1739381657523,0.2051195,97500.0,97492.0,0.3608]
[1739381657829,0.01104184,97503.0,97492.0,0.3608]
[1739381658030,0.00153944,97503.0,97494.0,0.2051299]
[1739381658529,0.0001539,97506.0,97505.0,0.2051076]
[1739381659427,0.0001539,97506.0,97500.0,0.3608]
[1739381659726,0.001,97503.0,97500.0,0.3608]
[1739381659931,0.001,97503.0,97493.0,0.2051309]
[1739381660227,0.001,97503.0,97494.0,0.2051288]
[1739381660729,0.001,97503.0,97497.0,0.2051238]
[1739381660921,0.003,97503.0,97497.0,0.2051238]
[1739381661430,0.002,97503.0,97497.0,0.2051238]
[1739381662132,0.01,97503.0,97497.0,0.2051238]
[1739381662522,0.009,97503.0,97492.0,0.3608]
[1739381662717,0.08624,97502.0,97493.0,0.2051326]
[1739381662922,0.009,97503.0,97493.0,0.2051326]
[1739381663123,0.011,97503.0,97493.0,0.2051326]
[1739381663514,0.2051141,97502.0,97493.0,0.2051326]
[1739381663721,0.2051162,97501.0,97492.0,0.3608]
[1739381663921,0.2051202,97499.0,97492.0,0.3608]
[1739381664622,0.2051235,97498.0,97492.0,0.3608]
[1739381664827,0.006,97503.0,97492.0,0.3608]
[1739381665029,0.008,97499.0,97480.0,0.2051586]
[1739381665225,0.008,97499.0,97471.0,0.3608]
[1739381665429,0.008,97499.0,97475.0,0.2051694]
[1739381665731,0.2051546,97483.0,97471.0,0.3608]
[1739381666123,0.3608,97496.0,97471.0,0.3608]
[1739381666324,0.3608,97496.0,97473.0,0.2051736]
[1739381666325,0.2051499,97485.0,97473.0,0.2051736]
[1739381666519,0.2051541,97483.0,97473.0,0.2051736]
[1739381666726,0.3608,97485.0,97471.0,0.3608]
[1739381667032,0.3608,97476.0,97467.0,0.2051855]
[1739381667228,0.5659692,97476.0,97462.0,0.205198]
[1739381667433,0.3608,97476.0,97461.0,0.0953]
[1739381667731,0.2051897,97466.0,97456.0,0.205209]
[1739381668027,0.2051897,97466.0,97459.0,0.3608]
[1739381668728,0.2051897,97466.0,97450.0,0.3608]
[1739381668929,0.37123086,97476.0,97459.0,0.3608]
[1739381669129,0.001,97476.0,97473.0,0.3608]
[1739381669330,0.08504,97475.0,97471.0,0.5659785]
[1739381669633,0.001,97476.0,97469.0,0.3608]
[1739381669634,0.0107782,97476.0,97469.0,0.3608]
[1739381669830,0.0107782,97476.0,97471.0,0.2051779]
[1739381670434,0.0107782,97476.0,97469.0,0.3608]
[1739381670639,0.0107782,97476.0,97469.0,0.5659828]
[1739381670936,0.0097782,97476.0,97469.0,0.5659828]
[1739381671127,0.2051624,97479.0,97469.0,0.5659828]
[1739381671528,0.21463452,97479.0,97471.0,0.2051791]
[1739381671835,0.001,97476.0,97471.0,0.2051791]
[1739381672430,0.21563452,97479.0,97471.0,0.2051791]
[1739381672635,0.001,97479.0,97478.0,0.5659644]
[1739381672837,0.7586,97505.0,97478.0,0.38966035]
[1739381673033,0.7586,97505.0,97498.0,0.3608]
[1739381673236,0.085,97504.0,97498.0,0.3608]
[1739381673533,0.085,97504.0,97489.0,0.3608]
[1739381673832,0.18151202,97500.0,97478.0,0.5659643]
[1739381674039,0.5659141,97502.0,97487.0,0.0001539]
[1739381674333,0.5659141,97502.0,97488.0,0.01603588]
[1739381674536,0.5659141,97502.0,97487.0,0.3609539]
[1739381674537,0.205118,97501.0,97487.0,0.3609539]
[1739381674724,0.2051255,97497.0,97487.0,0.3609539]
[1739381674927,0.3608,97502.0,97487.0,0.3609539]
[1739381675135,0.2051282,97496.0,97487.0,0.3609539]
[1739381675332,0.3608,97492.0,97487.0,0.0001539]
[1739381675534,0.3608,97492.0,97471.0,0.17682748]
[1739381675535,0.1033,97491.0,97471.0,0.17682748]
[1739381675733,0.18151202,97481.0,97471.0,0.17682748]
[1739381675936,0.56647721,97482.0,97471.0,0.17682748]
[1739381676141,0.5659572,97482.0,97471.0,0.17682748]
[1739381676338,0.205161,97480.0,97472.0,0.01603922]
[1739381676637,0.205161,97480.0,97471.0,0.17682748]
[1739381676836,0.205161,97480.0,97472.0,0.01603923]
[1739381677028,0.205161,97480.0,97471.0,0.17682748]
[1739381677430,0.3608,97482.0,97471.0,0.17682748]
[1739381678838,0.3608,97474.0,97465.0,0.00153876]
[1739381679926,0.37020751,97474.0,97465.0,0.00153876]
[1739381680632,0.2051786,97472.0,97465.0,0.00153876]
[1739381681637,0.3608,97466.0,97465.0,0.00153876]
[1739381682436,0.3608,97466.0,97455.0,0.3608]
[1739381682437,0.205197,97463.0,97455.0,0.3608]
[1739381683137,0.3778,97466.0,97455.0,0.3608]
[1739381683335,0.3778,97466.0,97460.0,0.2052021]
[1739381683336,0.08384,97465.0,97460.0,0.2052021]
[1739381683636,0.08384,97465.0,97455.0,0.3608]
[1739381683637,0.3808,97466.0,97461.0,0.2051986]
[1739381683836,0.001,97463.0,97461.0,0.2051986]
[1739381684545,0.006,97463.0,97461.0,0.2051986]
[1739381685038,0.006,97463.0,97456.0,0.2997105]
[1739381685343,0.005,97463.0,97456.0,0.2997105]
[1739381685545,0.005,97463.0,97456.0,0.0945]
[1739381685546,0.2052071,97458.0,97456.0,0.0945]
[1739381685744,0.2052086,97457.0,97456.0,0.0945]
[1739381686145,0.2052107,97456.0,97455.0,0.3608]
[1739381687037,0.2052297,97447.0,97446.0,0.3608]
[1739381688242,0.2052389,97443.0,97435.0,0.1021]
[1739381688448,0.2052389,97443.0,97436.0,0.01283385]
[1739381688633,0.002,97447.0,97435.0,0.1021]
[1739381688839,0.205257,97434.0,97433.0,0.53850748]
[1739381689041,0.205257,97434.0,97433.0,0.53762748]
[1739381690439,0.205257,97434.0,97433.0,0.3608]
[1739381690645,0.2052452,97440.0,97433.0,0.3608]
[1739381691347,0.21479959,97440.0,97433.0,0.3608]
[1739381691542,0.08384,97439.0,97432.0,0.2052592]
[1739381691741,0.2052485,97439.0,97432.0,0.2052592]
[1739381692340,0.2052485,97439.0,97433.0,0.2052587]
[1739381692540,0.2052485,97439.0,97426.0,0.3608]
[1739381692744,0.001,97439.0,97429.0,0.18151202]
[1739381693444,0.001,97439.0,97438.0,0.2052486]
[1739381694342,0.00955439,97440.0,97439.0,0.2052465]
[1739381694549,0.0001539,97443.0,97442.0,0.2052402]
[1739381694773,0.2052487,97438.0,97437.0,0.3608]
[1739381694939,0.0001539,97443.0,97426.0,0.3608]
[1739381695140,0.2052718,97428.0,97427.0,0.205271]
[1739381695943,0.002,97438.0,97418.0,0.36168]
[1739381696142,0.2052887,97419.0,97418.0,0.3608]
[1739381697237,0.21497773,97419.0,97418.0,0.3608]
[1739381697845,0.37048903,97419.0,97410.0,0.0015396]
[1739381698041,0.2053055,97411.0,97410.0,0.0015396]
[1739381698446,0.37248903,97419.0,97410.0,0.0015396]
[1739381698647,0.2053055,97411.0,97410.0,0.0015396]
[1739381698843,0.205294,97417.0,97410.0,0.0015396]
[1739381699651,0.37348903,97419.0,97410.0,0.0015396]
[1739381699852,0.2052996,97414.0,97410.0,0.0015396]
[1739381700055,0.001,97417.0,97410.0,0.0015396]
[1739381700250,0.2053046,97412.0,97410.0,0.0015396]
[1739381700455,0.002,97411.0,97410.0,0.0015396]
[1739381700852,0.002,97411.0,97410.0,0.5676473]
[1739381701157,0.001,97417.0,97410.0,0.3623396]
[1739381701347,0.002,97417.0,97414.0,0.2052983]
[1739381701549,0.002,97417.0,97410.0,0.3623396]
[1739381701955,0.001,97411.0,97410.0,0.5676473]
[1739381702271,0.3608,97440.0,97410.0,0.37189422]
[1739381702449,0.3608,97451.0,97429.0,0.3608]
[1739381702657,0.2052645,97431.0,97429.0,0.3608]
[1739381702852,0.18151202,97440.0,97414.0,0.3608]
[1739381702853,0.2052837,97422.0,97414.0,0.3608]
[1739381703055,0.18151202,97430.0,97414.0,0.3608]
[1739381703349,0.2052813,97423.0,97414.0,0.5660983]
[1739381703544,0.001,97417.0,97414.0,0.3608]
[1739381703759,0.08484,97417.0,97415.0,0.2052971]
[1739381703954,0.001,97417.0,97415.0,0.2052971]
[1739381704355,0.2052748,97426.0,97415.0,0.2052971]
[1739381704557,0.001,97423.0,97419.0,0.2052883]
[1739381705155,0.205279,97424.0,97419.0,0.2052883]
[1739381705354,0.00015398,97432.0,97420.0,0.2052856]
[1739381705355,0.205266,97430.0,97420.0,0.2052856]
[1739381705550,0.2052751,97426.0,97420.0,0.2052856]
[1739381705861,0.00015398,97432.0,97414.0,0.5660991]
[1739381706056,0.2052809,97423.0,97417.0,0.2052916]
[1739381706253,0.2052677,97429.0,97419.0,0.2052876]